bitfinex-derivatives/quotes_SOLF0:USTF0_20250522
["timestamp","ask_amount","ask_price","bid_price","bid_amount"]
[1747886686706,18.40450835,176.94,176.85,5.6526]
[1747886686707,4.0504,176.94,176.85,5.6526]
[1747886686915,209.14,177.02,176.82,209.14]
[1747886687114,2.0501,177.01,176.83,209.14]
[1747886687617,0.0364111,176.94,176.9,0.04314265]
[1747886687812,0.0364111,176.94,176.9,0.04073301]
[1747886688914,5.6506,176.93,176.9,0.04073301]
[1747886689317,0.0364111,176.94,176.9,0.04073301]
[1747886690018,0.0364111,176.94,176.91,5.6509]
[1747886690215,0.0364111,176.94,176.9,0.04073301]
[1747886690621,0.0364111,176.94,176.93,5.6503]
[1747886691015,0.0364111,176.94,176.91,1.9028]
[1747886691214,0.0364111,176.94,176.92,5.6506]
[1747886691413,0.0364111,176.94,176.9,0.04073301]
[1747886691815,5.6509,176.91,176.9,0.04073301]
[1747886692012,3.9848,176.93,176.78,488.78]
[1747886692518,5.652,176.88,176.83,5.6534]
[1747886692719,3.9848,176.93,176.78,488.78]
[1747886692923,0.04029489,176.88,176.85,0.04269181]
[1747886693121,5.6522,176.87,176.85,0.04269181]
[1747886693816,0.04029489,176.88,176.85,0.04269181]
[1747886694922,5.6525,176.86,176.85,0.04269181]
[1747886695117,0.04029489,176.88,176.85,0.04269181]
[1747886695415,5.6525,176.86,176.85,0.04269181]
[1747886696115,5.6522,176.87,176.85,0.04269181]
[1747886696419,0.04029489,176.88,176.85,0.04269181]
[1747886696619,5.6524,176.86,176.85,0.04269181]
[1747886697419,0.04029489,176.88,176.85,0.04269181]
[1747886697823,5.6525,176.86,176.85,0.04269181]
[1747886699018,5.6525,176.86,176.85,9.181e-05]
[1747886701023,24.06450835,176.86,176.74,209.1]
[1747886701219,204.3811,176.85,176.72,1.9028]
[1747886701617,5.6535,176.83,176.78,5.6548]
[1747886702014,5.6541,176.81,176.79,0.03809628]
[1747886702221,0.04230401,176.82,176.79,0.03809628]
[1747886702614,5.69620401,176.82,176.79,0.03809628]
[1747886702814,0.04230401,176.82,176.79,0.03809628]
[1747886704123,5.6544,176.8,176.79,0.03809628]
[1747886704727,5.6542,176.81,176.79,0.03809628]
[1747886704926,0.04230401,176.82,176.79,0.03809628]
[1747886706325,0.04230401,176.82,176.81,5.6541]
[1747886707023,0.04230401,176.82,176.8,5.6544]
[1747886707229,202.36,176.95,176.79,0.03809628]
[1747886707525,5.6517,176.89,176.76,2.0008]
[1747886707726,2.0827,176.94,176.76,2.0008]
[1747886708122,0.0425402,176.87,176.83,0.03673868]
[1747886708328,0.0425402,176.87,176.83,0.037144]
[1747886709124,5.6531,176.84,176.83,0.037144]
[1747886709628,5.6947402,176.87,176.83,0.037144]
[1747886709834,0.0425402,176.87,176.83,0.037144]
[1747886711934,5.6531,176.84,176.83,0.037144]
[1747886712330,309.82,176.85,176.68,492.6878]
[1747886712535,5.6551,176.79,176.73,5.6566]
[1747886712729,309.82,176.85,176.73,5.6566]
[1747886712931,309.82,176.85,176.68,492.6878]
[1747886713336,0.03857809,176.78,176.6,202.34]
[1747886713534,309.82,176.77,176.63,2.0281]
[1747886713835,1.9255,176.76,176.63,2.0281]
[1747886714032,18.40450835,176.74,176.55,691.06]
[1747886714241,5.6619,176.57,176.5,206.4078]
[1747886714434,18.40450835,176.62,176.52,0.03580151]
[1747886714631,0.04132087,176.59,176.55,0.04048187]
[1747886714838,5.6624,176.55,176.48,5.6645]
[1747886715038,0.04341297,176.53,176.5,0.04176396]
[1747886716544,202.36,176.68,176.5,5.70176396]
[1747886716836,1.9195,176.66,176.51,1.952]
[1747886717140,3.9712,176.66,176.24,56.724]
[1747886717339,22.37570835,176.66,176.41,224.84560835]
[1747886717545,0.035894,176.55,176.51,0.03885613]
[1747886717741,0.04096352,176.55,176.51,0.04295517]
[1747886718135,0.04096352,176.55,176.53,5.6628]
[1747886718649,0.04096352,176.55,176.53,5.6629]
[1747886719239,0.04096352,176.55,176.51,0.04295517]
[1747886719553,0.04096352,176.55,176.52,1.41604606]
[1747886719739,0.04096352,176.55,176.54,5.6627]
[1747886720241,0.04096352,176.55,176.53,5.6631]
[1747886720443,6.352e-05,176.55,176.51,0.04295517]
[1747886720947,6.352e-05,176.55,176.54,5.6627]
[1747886721351,6.352e-05,176.55,176.51,0.04295517]
[1747886722142,6.352e-05,176.55,176.54,5.6627]
[1747886722951,488.74,176.67,176.54,202.06]
[1747886723150,196.4,176.7,176.54,196.4]
[1747886723342,4.08,176.71,176.54,196.4]
[1747886723844,5.658,176.69,176.61,0.04336475]
[1747886724241,0.04043111,176.67,176.61,0.04336475]
[1747886726053,5.6595,176.65,176.61,0.04336475]
[1747886726442,0.04043111,176.67,176.61,0.04336475]
[1747886726646,5.659,176.66,176.61,0.04336475]
[1747886727052,0.04043111,176.67,176.61,0.04336475]
[1747886727353,5.6601,176.63,176.61,0.04336475]
[1747886727556,2.0796,176.62,176.61,0.04336475]
[1747886729042,7.7398,176.62,176.61,0.04336475]
[1747886729547,0.04071375,176.63,176.61,0.04336475]
[1747886730153,0.04071375,176.63,176.61,1.45921392]
[1747886730959,0.04071375,176.63,176.61,0.04336475]
[1747886731654,5.70071375,176.63,176.52,0.98550566]
[1747886731954,2.0746,176.62,176.49,2.0634]
[1747886732153,198.4969,176.61,176.44,200.4666]
[1747886732356,198.4969,176.61,176.43,1.948]
[1747886732357,18.40450835,176.59,176.43,1.948]
[1747886732555,5.665,176.47,176.4,5.6672]
[1747886732861,0.03900565,176.45,176.42,0.04167661]
[1747886733061,0.03861114,176.45,176.42,0.03665819]
[1747886735154,5.6663,176.43,176.42,0.03665819]
[1747886735351,0.03861114,176.45,176.42,0.03665819]
[1747886735660,5.6663,176.43,176.42,0.03665819]
[1747886735859,0.03861114,176.45,176.42,0.03665819]
[1747886736153,304.21861114,176.45,176.3,1.9327]
[1747886736361,5.6666,176.43,176.35,5.6686]
[1747886736553,196.54,176.46,176.33,2.0675]
[1747886736753,3.9588,176.52,176.33,2.0675]
[1747886737060,0.0379709,176.46,176.42,0.03895937]
[1747886737462,0.0379709,176.46,176.43,1.41736297]
[1747886737757,196.54,176.61,176.43,1.41736297]
[1747886738059,198.4399,176.61,176.44,4.1081]
[1747886738255,5.6612,176.59,176.51,5.6636]
[1747886738450,1.8999,176.61,176.44,4.1081]
[1747886738451,1.8999,176.61,176.44,22.51260835]
[1747886738655,0.04352751,176.54,176.51,0.03659102]
[1747886738860,0.03608701,176.54,176.51,0.03659102]
[1747886739562,489.42,176.63,176.51,0.03659102]
[1747886739769,196.56,176.71,176.51,18.40450835]
[1747886739963,3.974,176.73,176.51,18.40450835]
[1747886740161,196.56,176.72,176.49,196.56]
[1747886740363,0.04314864,176.62,176.59,0.04331077]
[1747886740562,5.6608,176.6,176.59,0.03741623]
[1747886741064,196.54,176.6,176.47,202.2048]
[1747886741562,196.54,176.6,176.47,196.54]
[1747886741755,5.6629,176.54,176.47,196.54]
[1747886741954,0.04278394,176.52,176.49,0.04071497]
[1747886742155,0.04340949,176.52,176.49,0.03845823]
[1747886743567,5.664,176.5,176.49,0.03845823]
[1747886743953,5.6654,176.46,176.38,1.9736]
[1747886744157,196.54,176.54,176.38,3.9234]
[1747886744555,5.6653,176.46,176.39,2.055]
[1747886744756,196.56,176.5,176.39,2.055]
[1747886745265,0.03806153,176.46,176.43,0.03698826]
[1747886746165,686.04,176.54,176.43,0.03698826]
[1747886746365,686.04,176.54,176.39,2.055]
[1747886746564,196.56,176.59,176.43,18.40450835]
[1747886746866,196.56,176.59,176.43,214.96450835]
[1747886747066,5.7912,176.62,176.43,214.96450835]
[1747886747267,0.03854905,176.54,176.51,0.03801835]
[1747886747480,0.03611203,176.54,176.51,0.0368724]
[1747886747966,26.89253407,176.53,176.51,0.0368724]
[1747886748461,84.07528102,176.54,176.51,0.0368724]
[1747886748665,5.6634,176.52,176.51,0.0368724]
[1747886748869,84.07528102,176.54,176.51,0.0368724]
[1747886749263,60.48408182,176.53,176.51,0.0368724]
[1747886749766,66.14718182,176.53,176.51,0.0368724]
[1747886750066,5.6631,176.53,176.51,0.0368724]
[1747886750268,5.6634,176.52,176.51,0.0368724]
[1747886750470,32.54434639,176.52,176.51,0.0368724]
[1747886750769,26.88094639,176.52,176.51,0.0368724]
[1747886750963,0.03611203,176.54,176.51,0.0368724]
[1747886751164,196.61611203,176.54,176.51,7.24e-05]
[1747886751467,5.6634,176.52,176.51,7.24e-05]
[1747886752167,11.3234,176.52,176.51,7.24e-05]
[1747886752573,5.6634,176.52,176.51,7.24e-05]
[1747886753165,495.24,176.52,176.32,191.96]
[1747886753365,1.9628,176.51,176.34,6.1153]
[1747886753859,5.6663,176.43,176.34,6.1153]
[1747886754066,191.98,176.47,176.34,6.1153]
[1747886754370,0.03812403,176.42,176.39,0.04225033]
[1747886755166,191.98,176.5,176.39,5.70225033]
[1747886755364,191.98,176.5,176.34,6.1153]
[1747886755672,191.98,176.5,176.35,5.6686]
[1747886755974,18.40450835,176.49,176.34,6.1153]
[1747886756167,0.042275,176.43,176.4,0.04216237]
[1747886756362,0.03675726,176.43,176.4,0.03811848]
[1747886758762,0.03675726,176.43,176.41,5.6669]
[1747886758970,67.23537409,176.47,176.4,0.03811848]
[1747886759273,67.23537409,176.47,176.46,5.6653]
[1747886759471,5.6637,176.52,176.46,5.6653]
[1747886759675,192.02,176.57,176.39,192.02]
[1747886759874,192.02,176.57,176.42,5.6664]
[1747886760170,0.03899743,176.51,176.48,0.03694974]
[1747886760377,5.6643,176.49,176.48,4.974e-05]
[1747886760764,199.6245,176.49,176.48,4.974e-05]
[1747886761270,7.6045,176.49,176.48,4.974e-05]
[1747886761477,199.6245,176.49,176.48,4.974e-05]
[1747886762075,199.6245,176.49,176.34,198.1353]
[1747886762076,5.6671,176.41,176.37,5.6682]
[1747886762372,193.9602,176.49,176.34,198.1353]
[1747886762572,193.9602,176.49,176.34,11.7842]
[1747886762771,193.9602,176.49,176.34,6.1153]
[1747886762976,0.04325943,176.43,176.4,0.042263]
[1747886763173,192.04,176.42,176.29,192.04]
[1747886763367,194.0465,176.42,176.28,4.0239]
[1747886763567,2.0065,176.42,176.35,5.6686]
[1747886763771,1.9402,176.49,176.29,192.04]
[1747886763973,301.823,176.48,176.29,192.04]
[1747886764174,0.0403036,176.4,176.37,0.04237559]
[1747886764371,0.03945623,176.4,176.37,0.04343851]
[1747886765279,0.03945623,176.4,176.38,5.6679]
[1747886765575,0.03945623,176.4,176.37,0.04343851]
[1747886766176,489.72,176.52,176.37,0.04343851]
[1747886766378,489.72,176.52,176.37,2.0649]
[1747886767181,0.0364004,176.46,176.43,0.0430988]
[1747886767374,6.1545,176.57,176.43,0.0430988]
[1747886767573,5.6633,176.53,176.47,5.6649]
[1747886767770,198.2145,176.57,176.43,1.9199]
[1747886768174,5.6637,176.52,176.46,5.6652]
[1747886768371,0.0426195,176.51,176.47,0.04102072]
[1747886768783,0.0426195,176.51,176.49,5.6641]
[1747886768972,0.0426195,176.51,176.47,0.04102072]
[1747886769179,0.0426195,176.51,176.5,5.664]
[1747886769377,489.78,176.61,176.48,193.9522]
[1747886769579,195.9939,176.65,176.48,301.6522]
[1747886769784,195.9939,176.65,176.53,5.6628]
[1747886770182,195.9939,176.65,176.48,301.6522]
[1747886770385,5.662,176.57,176.55,0.03979056]
[1747886770891,0.04345986,176.58,176.55,0.03979056]
[1747886772085,0.04345986,176.58,176.55,5.70219056]
[1747886772379,0.04345986,176.58,176.55,0.03979056]
[1747886773092,192.0,176.68,176.55,192.03979056]
[1747886773284,195.9974,176.73,176.56,107.68]
[1747886773486,5.658,176.69,176.63,5.6596]
[1747886773683,5.658,176.69,176.57,1.9956]
[1747886773684,195.9974,176.73,176.58,2.1001]
[1747886773986,5.6583,176.68,176.63,5.6597]
[1747886774189,0.0395199,176.67,176.64,0.03990193]
[1747886775287,191.96,176.66,176.52,191.96]
[1747886775590,194.032,176.66,176.52,191.96]
[1747886775791,147.81835689,176.57,176.5,74.06491889]
[1747886776485,0.04041939,176.55,176.52,0.03678227]
[1747886776687,0.04041939,176.55,176.52,1.02134179]
[1747886776886,147.81835689,176.57,176.52,1.02134179]
[1747886777486,191.96,176.64,176.52,1.02134179]
[1747886777684,191.96,176.64,176.52,0.98455952]
[1747886777883,5.6612,176.59,176.56,0.04019453]
[1747886778092,0.03585416,176.6,176.56,0.04019453]
[1747886778404,5.6612,176.59,176.56,0.04019453]
[1747886778592,0.03585416,176.6,176.56,0.04019453]
[1747886779896,489.54,176.68,176.56,0.04019453]
[1747886780188,5.6596,176.64,176.58,5.6615]
[1747886780391,489.54,176.68,176.58,5.6615]
[1747886780593,489.54,176.68,176.54,107.64]
[1747886780794,0.03888913,176.63,176.59,0.04318192]
[1747886781493,0.03888913,176.63,176.59,5.70428192]
[1747886781696,0.03888913,176.63,176.59,0.04318192]
[1747886782587,188.91888913,176.63,176.59,0.04318192]
[1747886782789,109.6429,176.62,176.41,490.36582173]
[1747886782997,111.7269,176.62,176.47,3.07185952]
[1747886783300,5.6648,176.48,176.45,0.98455952]
[1747886783795,0.03963929,176.48,176.45,1.02548823]
[1747886784398,5.6653,176.46,176.45,1.02548823]
[1747886786501,5.6653,176.46,176.45,0.04092871]
[1747886786687,5.70453929,176.48,176.45,0.04092871]
[1747886786998,0.03963929,176.48,176.45,0.04092871]
[1747886788398,0.03963929,176.48,176.45,5.70652871]
[1747886788601,0.03963929,176.48,176.45,0.04092871]
[1747886789801,0.03963929,176.48,176.47,5.665]
[1747886790105,489.38,176.57,176.45,0.04092871]
[1747886790305,188.92,176.59,176.46,188.92]
[1747886790306,5.6615,176.58,176.46,188.92]
[1747886790508,188.92,176.59,176.47,4.0126]
[1747886790704,188.92,176.59,176.46,188.92]
[1747886790903,0.04286692,176.54,176.4,1.9099]
[1747886791098,188.92,176.53,176.4,1.9099]
[1747886791298,3.9481,176.52,176.4,1.9099]
[1747886791898,0.0362115,176.48,176.44,0.04336944]
[1747886794006,0.0362115,176.48,176.32,490.36455952]
[1747886794201,296.6,176.5,176.32,490.36455952]
[1747886795109,5.6672,176.4,176.39,0.03837098]
[1747886795308,0.04247397,176.43,176.38,0.04065263]
[1747886795608,2.11472615,176.42,176.26,188.96]
[1747886795809,2.11472615,176.42,176.25,109.7258]
[1747886795810,2.0714,176.42,176.25,4.0098]
[1747886796108,18.40450835,176.39,176.27,5.6712]
[1747886796305,188.96,176.38,176.25,1.964]
[1747886796502,0.03813811,176.33,176.3,5.7133253]
[1747886796810,0.03813811,176.33,176.3,0.0432253]
[1747886797108,2.0714,176.42,176.3,0.0432253]
[1747886797310,2.0714,176.42,176.27,188.96]
[1747886797807,2.0714,176.42,176.28,2.0019]
[1747886798005,0.03972519,176.37,176.28,2.0019]
[1747886798205,0.03972519,176.37,176.33,0.03707504]
[1747886799306,0.03972519,176.37,176.33,189.03707504]
[1747886799607,22.39150835,176.5,176.34,1.9523]
[1747886799809,189.0,176.48,176.34,5.89]
[1747886800002,3.987,176.5,176.43,5.6662]
[1747886800199,192.987,176.5,176.34,5.89]
[1747886800608,0.03702173,176.44,176.4,0.03571769]
[1747886801117,0.03702173,176.44,176.43,5.6663]
[1747886801307,0.03702173,176.44,176.4,0.03571769]
[1747886801914,0.03702173,176.44,176.41,5.6669]
[1747886802106,0.03702173,176.44,176.4,0.03571769]
[1747886804609,0.03702173,176.44,176.41,5.6669]
[1747886804802,0.03702173,176.44,176.4,0.03571769]
[1747886805111,0.03702173,176.44,176.4,189.05571769]
[1747886805810,489.74,176.54,176.4,189.05571769]
[1747886806105,489.74,176.54,176.4,189.02]
[1747886806415,4.0176,176.56,176.4,189.02]
[1747886806708,5.663,176.54,176.46,0.04331223]
[1747886806914,0.03868907,176.5,176.46,0.04331223]
[1747886807306,0.03868907,176.5,176.49,5.6644]
[1747886807612,0.03868907,176.5,176.46,189.06331223]
[1747886808112,0.03868907,176.5,176.46,0.04331223]
[1747886808516,2.0515,176.61,176.47,189.02]
[1747886808810,4.0628,176.67,176.48,20.33980835]
[1747886809620,4.0628,176.67,176.54,0.03651157]
[1747886809809,4.0628,176.67,176.55,189.02]
[1747886810014,4.0628,176.67,176.59,0.0377979]
[1747886810517,5.6592,176.65,176.59,0.0377979]
[1747886810703,4.0628,176.67,176.59,0.0377979]
[1747886811914,5.6608,176.6,176.59,0.0377979]
[1747886812112,184.32,176.64,176.59,0.0377979]
[1747886813012,107.71626691,176.63,176.49,188.96]
[1747886813212,107.68,176.63,176.49,188.96]
[1747886813423,5.6641,176.5,176.4,184.3]
[1747886813621,184.3,176.54,176.4,184.3]
[1747886814124,0.03937381,176.49,176.45,0.04239813]
[1747886818518,0.03937381,176.49,176.46,5.665]
[1747886818718,0.03937381,176.49,176.45,0.04239813]
[1747886819116,0.03937381,176.49,176.45,1.94819813]
[1747886819315,18.39460572,176.7,176.45,1.94819813]
[1747886819619,184.3,176.62,176.45,1.9058]
[1747886820119,5.6618,176.57,176.51,5.6635]
[1747886820319,184.3,176.62,176.52,0.03814289]
[1747886821320,5.6626,176.55,176.52,0.03814289]
[1747886821520,184.3,176.62,176.52,0.03814289]
[1747886821913,5.6631,176.53,176.52,0.03814289]
[1747886822120,184.3,176.56,176.52,0.03814289]
[1747886822323,184.3,176.58,176.52,0.03967331]
[1747886822520,184.3,176.58,176.53,0.03722526]
[1747886822820,2.0609,176.57,176.54,0.03833476]
[1747886823009,2.0609,176.57,176.54,0.03608713]
[1747886823215,2.0703,176.56,176.54,0.03608713]
[1747886823418,5.6624,176.55,176.54,0.03608713]
[1747886824523,11.3224,176.55,176.54,8.713e-05]
[1747886824723,13.3605,176.55,176.54,8.713e-05]
[1747886825020,7.7005,176.55,176.54,8.713e-05]
[1747886825716,0.03921622,176.56,176.54,5.66278713]
[1747886825919,0.03921622,176.56,176.54,8.713e-05]
[1747886826221,5.70161622,176.56,176.54,8.713e-05]
[1747886826416,0.03921622,176.56,176.54,8.713e-05]
[1747886827912,5.6624,176.55,176.54,8.713e-05]
[1747886828219,0.03921622,176.56,176.54,8.713e-05]
[1747886828418,5.70131622,176.56,176.54,8.713e-05]
[1747886828720,0.03921622,176.56,176.54,8.713e-05]
[1747886829120,3.9722,176.63,176.54,8.713e-05]
[1747886829523,1.8979,176.63,176.54,8.713e-05]
[1747886829722,186.3815,176.67,176.54,8.713e-05]
[1747886829929,7.36127183,176.7,176.53,18.40450835]
[1747886830131,7.36127183,176.7,176.6,0.04077439]
[1747886830626,5.6605,176.61,176.6,0.04077439]
[1747886832631,4.0166,176.65,176.49,2.0805]
[1747886833233,4.0166,176.65,176.45,673.8]
[1747886833630,0.03699186,176.57,176.53,0.03599626]
[1747886833828,184.28150029,176.57,176.53,0.04085393]
[1747886834025,2.0274,176.56,176.53,0.04085393]
[1747886834526,5.6627,176.54,176.53,0.04085393]
[1747886834726,2.0664,176.55,176.41,0.98455952]
[1747886834927,5.6653,176.46,176.41,0.98455952]
[1747886835130,2.0664,176.55,176.41,0.98455952]
[1747886835635,0.03622709,176.5,176.46,0.03832316]
[1747886836631,5.665,176.47,176.46,0.03832316]
[1747886836836,0.03622709,176.5,176.46,0.03832316]
[1747886838340,5.665,176.47,176.46,0.03832316]
[1747886838535,0.03622709,176.5,176.46,0.03832316]
[1747886840442,0.03622709,176.5,176.49,5.6644]
[1747886841141,0.03622709,176.5,176.46,0.03832316]
[1747886844048,178.51622709,176.5,176.35,178.48]
[1747886844246,1.9386,176.49,176.37,5.6679]
[1747886844451,1.9386,176.49,176.35,178.48]
[1747886845147,0.03868692,176.44,176.4,0.04093365]
[1747886845340,5.6664,176.43,176.4,0.04093365]
[1747886845741,0.03868692,176.44,176.4,0.04093365]
[1747886847744,0.03868692,176.44,176.4,5.70793365]
[1747886847952,0.03868692,176.44,176.4,0.04093365]
[1747886848452,0.03868692,176.44,176.43,5.6663]
[1747886850056,0.03868692,176.44,176.4,0.04093365]
[1747886850656,5.70468692,176.44,176.4,0.04093365]
[1747886850850,0.03868692,176.44,176.4,0.04093365]
[1747886854350,0.03868692,176.44,176.3,178.54]
[1747886854555,107.7,176.44,176.3,178.54]
[1747886854759,5.6685,176.37,176.31,5.6701]
[1747886854953,5.9142,176.45,176.3,178.54]
[1747886855163,0.03932943,176.39,176.36,0.03881053]
[1747886856860,5.6655,176.46,176.36,178.59881053]
[1747886857056,5.6655,176.46,176.37,2.0118]
[1747886857257,5.27867183,176.47,176.37,4.0911]
[1747886857860,0.03853402,176.44,176.4,0.03961341]
[1747886858058,0.03853402,176.44,176.42,5.6665]
[1747886858757,0.03853402,176.44,176.43,5.6663]
[1747886858955,5.27867183,176.47,176.4,0.03961341]
[1747886859160,5.27867183,176.54,176.4,0.03961341]
[1747886859358,5.27867183,176.54,176.37,4.0911]
[1747886859964,0.04328069,176.47,176.44,0.0372247]
[1747886860160,5.27867183,176.54,176.44,0.0372247]
[1747886861061,5.27867183,176.54,176.46,5.6652]
[1747886861359,0.03587805,176.52,176.48,0.0369304]
[1747886861560,5.6637,176.51,176.48,0.0369304]
[1747886861959,0.03587805,176.52,176.48,0.0369304]
[1747886862769,5.6644,176.49,176.48,0.0369304]
[1747886863972,178.52,176.49,176.38,1.9843]
[1747886864464,5.6651,176.47,176.38,1.9843]
[1747886865070,5.70411698,176.44,176.41,0.04359195]
[1747886866069,5.6666,176.42,176.41,0.04359195]
[1747886866873,5.6664,176.43,176.41,0.04359195]
[1747886867072,0.03791698,176.44,176.41,0.04359195]
[1747886867769,0.03791698,176.44,176.43,5.6663]
[1747886867973,7.34917183,176.53,176.41,0.04359195]
[1747886868271,10.94177183,176.53,176.49,5.6643]
[1747886868569,5.27867183,176.53,176.42,1.9878]
[1747886869172,0.03963224,176.49,176.46,0.03594043]
[1747886869472,0.03963224,176.49,176.48,5.6647]
[1747886869775,0.03963224,176.49,176.46,0.03594043]
[1747886870875,5.665,176.47,176.46,0.03594043]
[1747886871375,175.54,176.48,176.38,0.98455952]
[1747886871577,5.6669,176.42,176.38,0.98455952]
[1747886871768,177.6384,176.48,176.38,0.98455952]
[1747886872172,177.6384,176.48,176.37,2.0118]
[1747886872369,177.6384,176.48,176.41,0.03765002]
[1747886872566,5.6665,176.43,176.41,0.03765002]
[1747886872966,0.04107638,176.44,176.41,0.03765002]
[1747886873168,5.6666,176.42,176.41,0.03765002]
[1747886874177,5.6683,176.37,176.32,2.0217]
[1747886874476,177.6384,176.48,176.32,2.0217]
[1747886874870,182.91707183,176.48,176.32,2.0217]
[1747886875171,0.03707359,176.42,176.38,0.04057456]
[1747886875372,5.6676,176.39,176.38,0.04057456]
[1747886876276,0.03707359,176.42,176.38,0.04057456]
[1747886878676,5.6672,176.41,176.38,0.04057456]
[1747886879070,0.03707359,176.42,176.38,0.04057456]
[1747886879871,0.03707359,176.42,176.39,5.6673]
[1747886880174,0.03707359,176.42,176.38,0.04057456]
[1747886882574,5.27867183,176.5,176.38,5.70057456]
[1747886882774,5.27867183,176.5,176.37,3.958]
[1747886883171,5.27867183,176.5,176.38,175.58]
[1747886883577,5.6663,176.43,176.42,0.04143335]
[1747886884681,181.5531,176.45,176.35,0.98455952]
[1747886885181,5.6685,176.36,176.35,0.98455952]
[1747886885979,5.6685,176.36,176.34,0.04232176]
[1747886885980,5.6688,176.35,176.34,0.04232176]
[1747886886580,0.03815003,176.37,176.34,0.04232176]
[1747886886781,0.03815003,176.37,176.35,5.6688]
[1747886886974,0.03815003,176.37,176.34,0.04232176]
[1747886887383,175.58,176.42,176.34,0.04232176]
[1747886887577,5.27867183,176.43,176.34,0.04232176]
[1747886888080,5.6671,176.41,176.34,0.04232176]
[1747886888282,5.27867183,176.43,176.34,0.04232176]
[1747886888582,0.04213822,176.39,176.34,0.04232176]
[1747886888881,0.04213822,176.39,176.38,5.6679]
[1747886889184,489.82,176.46,176.35,0.04235947]
[1747886889376,175.58,176.48,176.33,1.9359]
[1747886889576,175.58,176.48,176.39,5.6674]
[1747886889775,175.58,176.48,176.33,1.9359]
[1747886890277,0.03634673,176.42,176.39,0.04344126]
[1747886892379,5.6672,176.4,176.39,0.04344126]
[1747886892876,0.03634673,176.42,176.39,0.04344126]
[1747886893388,5.6672,176.4,176.39,0.04344126]
[1747886894679,5.667,176.41,176.39,0.04344126]
[1747886894879,0.03634673,176.42,176.39,0.04344126]
[1747886895384,0.03634673,176.42,176.39,5.71084126]
[1747886895682,5.27867183,176.47,176.39,175.62344126]
[1747886895982,5.27867183,176.47,176.4,2.012]
[1747886897188,3.871,176.53,176.46,5.6653]
[1747886897490,5.27867183,176.55,176.5,5.664]
[1747886898081,10.94117183,176.55,176.51,5.6637]
[1747886898386,5.27867183,176.55,176.48,0.04083607]
[1747886899291,10.94117183,176.55,176.5,5.664]
[1747886899491,5.27867183,176.55,176.48,0.04083607]
[1747886900390,3.8251,176.6,176.5,5.664]
[1747886900684,3.8251,176.6,176.53,0.04008498]
[1747886901083,3.8251,176.6,176.45,2.0672]
[1747886901594,5.6634,176.52,176.48,5.6646]
[1747886902091,0.03988131,176.52,176.49,5.6643]
[1747886902484,0.03988131,176.52,176.48,0.0392193]
[1747886902784,5.6643,176.5,176.48,0.0392193]
[1747886902984,0.03988131,176.52,176.48,0.0392193]
[1747886903189,0.03988131,176.52,176.39,1.9212]
[1747886903381,18.43671643,176.51,176.38,0.98455952]
[1747886903578,175.6943,176.5,176.38,0.98455952]
[1747886903882,107.68,176.49,176.38,0.98455952]
[1747886904078,5.6676,176.39,176.38,0.98455952]
[1747886904583,0.04334376,176.4,176.3,5.6702]
[1747886904782,2.0474,176.39,176.27,171.72]
[1747886904984,2.0474,176.39,176.32,7.64123134]
[1747886905290,2.0474,176.39,176.32,1.97153134]
[1747886905788,171.72,176.38,176.32,1.97153134]
[1747886906088,171.72,176.38,176.27,171.72]
[1747886906284,5.6711,176.28,176.22,171.76]
[1747886906490,171.72,176.38,176.22,171.76]
[1747886906688,5.6711,176.29,176.23,5.6725]
[1747886906990,0.04290613,176.28,176.24,0.03646975]
[1747886907289,5.71257292,176.28,176.24,0.04304181]
[1747886907489,0.04147292,176.28,176.24,0.04304181]
[1747886907887,0.04147292,176.28,176.27,5.6714]
[1747886908494,171.76,176.36,176.3,5.6705]
[1747886908791,171.76,176.36,176.23,18.43671643]
[1747886909489,0.03767862,176.31,176.28,0.04348215]
[1747886909890,0.03767862,176.31,176.28,5.71448215]
[1747886910090,0.03767862,176.31,176.28,0.04348215]
[1747886910492,0.03767862,176.31,176.3,5.6705]
[1747886910990,0.03767862,176.31,176.28,0.04348215]
[1747886912691,5.70787862,176.31,176.28,0.04348215]
[1747886912983,0.03767862,176.31,176.28,0.04348215]
[1747886913184,1.9732,176.3,176.21,5.6733]